fUSD/lending_fUSD_20250207
["ID","MTS","AMOUNT","RATE_DAILY","PERIOD"]
[352028172,1738887079276,-500.0,0.00017945,2]
[352028173,1738887079286,-647.54,0.00017945,2]
[352028174,1738887079296,-1252.07,0.00017945,2]
[352028175,1738887079308,-1086.03,0.00017945,2]
[352028176,1738887079319,-1143.54,0.00017945,2]
[352028177,1738887079330,-1045.05,0.00017945,2]
[352028178,1738887079341,-1780.26,0.00017945,2]
[352028179,1738887079352,-1089.69,0.00017945,2]
[352028180,1738887079362,-500.0,0.00017945,2]
[352028181,1738887079373,-1130.82,0.00017945,2]
[352028182,1738887079383,-867.97,0.00017945,2]
[352028183,1738887079393,-1278.31,0.00017945,2]
[352028184,1738887079403,-801.06,0.00017945,2]
[352028185,1738887079413,-652.88,0.00017945,2]
[352028186,1738887079423,-1021.32,0.00017945,2]
[352028187,1738887079433,-721.13,0.00017945,2]
[352028188,1738887079443,-558.13,0.00017945,2]
[352028189,1738887079452,-500.0,0.00017945,2]
[352028190,1738887079461,-500.0,0.00017945,2]
[352028191,1738887079474,-2386.13,0.00017945,2]
[352028192,1738887079493,-634.77,0.00017945,2]
[352028193,1738887079511,-781.32,0.00017945,2]
[352028194,1738887079531,-500.0,0.00017945,2]
[352028195,1738887079551,-643.51,0.00017945,2]
[352028196,1738887079568,-500.0,0.00017945,2]
[352028197,1738887079588,-803.41,0.00017945,2]
[352028198,1738887079609,-896.94,0.00017945,2]
[352028199,1738887079631,-502.01,0.00017945,2]
[352028200,1738887079647,-1571.73,0.00017945,2]
[352028201,1738887079669,-500.0,0.00017945,2]
[352028202,1738887079685,-832.99,0.00017945,2]
[352028203,1738887079702,-150.0,0.00017951,2]
[352028204,1738887079719,-159.62813598,0.00017952,2]
[352028205,1738887079735,-500.0,0.00017954,2]
[352028206,1738887079751,-150.0,0.00017954,2]
[352028207,1738887079768,-150.0,0.00017958,2]
[352028208,1738887079787,-150.0,0.00017963,2]
[352028209,1738887079806,-150.0,0.00017972,2]
[352028210,1738887079822,-500.0,0.00017972,2]
[352028211,1738887079840,-150.0,0.00017973,2]
[352028212,1738887079857,-150.0,0.00017975,2]
[352028213,1738887079873,-150.0,0.00017977,2]
[352028214,1738887079890,-150.0,0.00017981,2]
[352028215,1738887079904,-150.0,0.00017982,2]
[352028216,1738887079918,-150.0,0.00017983,2]
[352028217,1738887079932,-150.0,0.00017984,2]
[352028218,1738887079949,-150.0,0.00017989,2]
[352028219,1738887079963,-150.0,0.00017989,2]
[352028220,1738887079978,-1949279.877381,0.0001799,2]
[352028221,1738887079995,-2715.9561424,0.00017991,2]
[352028222,1738887080010,-2254.7022369,0.00017991,2]
[352028223,1738887080024,-4233.7836025,0.00017991,2]
[352028224,1738887080039,-150.0,0.00017992,2]
[352028225,1738887080056,-150.0,0.00017999,2]
[352028226,1738887080073,-188.00055385,0.00018,2]
[352028227,1738887080089,-500.0,0.00018,2]
[352028228,1738887080106,-127428.61755655,0.00018,15]
[352028229,1738887080122,-51768.80747859,0.00018,15]
[352028230,1738887080137,-800.0,0.00018,8]
[352028231,1738887080151,-262.34926299,0.00018,5]
[352028232,1738887080167,-250.0,0.00018,2]
[352028233,1738887080182,-251.3,0.00018,2]
[352028234,1738887080198,-200.0,0.00018,2]
[352028235,1738887080214,-26417.56,0.00018,2]
[352028236,1738887080229,-200.0,0.00018,2]
[352028237,1738887080244,-23676.6064004,0.00018,2]
[352028238,1738887080259,-188.218899,0.00018,2]
[352028239,1738887080274,-619.21215766,0.00018003,2]
[352028240,1738887080291,-5016.0083156,0.00018015,2]
[352028241,1738887080306,-19900.5820146,0.00018015,2]
[352028242,1738887080321,-500.0,0.00018027,2]
[352028243,1738887080335,-150.0,0.00018046,2]
[352028244,1738887080351,-500.0,0.00018054,2]
[352028245,1738887080367,-500.0,0.00018055,2]
[352028246,1738887080381,-803.37,0.0001808,2]
[352028247,1738887080396,-150.0,0.00018081,2]
[352028248,1738887080411,-500.0,0.00018082,2]
[352028249,1738887080427,-150.034696,0.00018082,2]
[352028250,1738887080442,-166.769306,0.00018082,2]
[352028251,1738887080458,-166.769304,0.00018082,2]
[352028252,1738887080472,-150.034691,0.00018082,2]
[352028253,1738887080487,-166.769304,0.00018082,2]
[352028254,1738887080501,-150.034691,0.00018082,2]
[352028255,1738887080517,-166.769307,0.00018082,2]
[352028256,1738887080533,-553.75,0.00018082,2]
[352028257,1738887080547,-500.0,0.00018082,2]
[352028258,1738887080562,-156.258729,0.00018082,2]
[352028259,1738887080578,-500.0,0.00018082,2]
[352028260,1738887080594,-188.553296,0.00018082,2]
[352028261,1738887080609,-500.0,0.00018082,2]
[352028262,1738887080625,-239.36832,0.00018082,2]
[352028263,1738887080640,-500.0,0.00018082,2]
[352028264,1738887080655,-500.0,0.00018082,2]
[352028265,1738887080819,-500.0,0.00018082,2]
[352028266,1738887080839,-500.0,0.00018082,2]
[352028267,1738887080849,-551.14,0.00018082,2]
[352028268,1738887080858,-500.0,0.00018082,2]
[352028269,1738887080867,-500.0,0.00018082,2]
[352028270,1738887080876,-500.0,0.00018082,2]
[352028271,1738887080884,-403.77,0.00018082,2]
[352028272,1738887080894,-500.0,0.00018082,2]
[352028273,1738887080903,-500.0,0.00018082,2]
[352028274,1738887080912,-500.0,0.00018082,2]
[352028275,1738887080922,-500.0,0.00018082,2]
[352028276,1738887080932,-614.1368623,0.00018082,2]
[352028277,1738887080942,-500.0,0.00018082,2]
[352028278,1738887080953,-500.0,0.00018082,2]
[352028279,1738887080963,-500.0,0.00018082,2]
[352028280,1738887080973,-599.22,0.00018082,2]
[352028281,1738887080985,-547.32,0.00018082,2]
[352028282,1738887080996,-577.73239609,0.00018082,2]
[352028283,1738887081007,-704.99,0.00018082,2]
[352028284,1738887081016,-500.0,0.00018082,2]
[352028285,1738887081026,-500.0,0.00018082,2]
[352028286,1738887081037,-538.11,0.00018082,2]
[352028287,1738887081047,-749.24,0.00018082,2]
[352028288,1738887081065,-500.0,0.00018082,2]
[352028289,1738887081075,-500.0,0.00018082,2]
[352028290,1738887081083,-568.75,0.00018082,2]
[352028291,1738887081093,-500.0,0.00018082,2]
[352028292,1738887081102,-534.37177336,0.00018082,2]
[352028293,1738887081112,-846.43,0.00018082,2]
[352028294,1738887081121,-500.0,0.00018082,2]
[352028295,1738887081131,-875.88,0.00018082,2]
[352028296,1738887081141,-554.71,0.00018082,2]
[352028297,1738887081151,-2472.36,0.00018082,2]
[352028298,1738887081160,-740.46,0.00018082,2]
[352028299,1738887081170,-699.17,0.00018082,2]
[352028300,1738887081179,-673.75,0.00018082,2]
[352028301,1738887081189,-500.23,0.00018082,2]
[352028302,1738887081198,-572.48,0.00018082,2]
[352028303,1738887081208,-680.74,0.00018082,2]
[352028304,1738887081218,-854.5,0.00018082,2]
[352028305,1738887081227,-500.0,0.00018082,2]
[352028306,1738887081238,-659.8,0.00018082,2]
[352028307,1738887081249,-1266.77,0.00018082,2]
[352028308,1738887081258,-888.98,0.00018082,2]
[352028309,1738887081267,-628.17,0.00018082,2]
[352028310,1738887081276,-2607.66,0.00018082,2]
[352028311,1738887081286,-563.12,0.00018082,2]
[352028312,1738887081295,-774.98,0.00018082,2]
[352028313,1738887081308,-500.0,0.00018082,2]
[352028314,1738887081318,-500.0,0.00018082,2]
[352028315,1738887081328,-500.0,0.00018082,2]
[352028316,1738887081338,-854.75,0.00018082,2]
[352028317,1738887081348,-572.06,0.00018082,2]
[352028318,1738887081359,-500.0,0.00018082,2]
[352028319,1738887081370,-500.0,0.00018082,2]
[352028320,1738887081380,-761.68,0.00018082,2]
[352028321,1738887081390,-1006.06,0.00018082,2]
[352028322,1738887081400,-500.0,0.00018082,2]
[352028323,1738887081410,-767.84,0.00018082,2]
[352028324,1738887081420,-1113.92,0.00018082,2]
[352028325,1738887081430,-859.98,0.00018082,2]
[352028326,1738887081440,-648.05,0.00018082,2]
[352028327,1738887081450,-790.48,0.00018082,2]
[352028328,1738887081459,-500.0,0.00018082,2]
[352028329,1738887081469,-1534.72,0.00018082,2]
[352028330,1738887081478,-1014.32,0.00018082,2]
[352028331,1738887081488,-954.05,0.00018082,2]
[352028332,1738887081498,-831.75,0.00018082,2]
[352028333,1738887081507,-500.0,0.00018082,2]
[352028334,1738887081517,-721.07,0.00018082,2]
[352028335,1738887081527,-932.77,0.00018082,2]
[352028336,1738887081536,-1177.66,0.00018082,2]
[352028337,1738887081546,-500.0,0.00018082,2]
[352028338,1738887081558,-809.96,0.00018082,2]
[352028339,1738887081568,-937.04,0.00018082,2]
[352028340,1738887081577,-819.27,0.00018082,2]
[352028341,1738887081587,-232.25,0.00018082,2]
[352028342,1738887081597,-500.0,0.00018082,2]
[352028343,1738887081608,-1021.65,0.00018082,2]
[352028344,1738887081618,-921.55,0.00018082,2]
[352028345,1738887081627,-533.9,0.00018082,2]
[352028346,1738887081637,-1572.61,0.00018082,2]
[352028347,1738887081646,-757.66,0.00018082,2]
[352028348,1738887081655,-508.02,0.00018082,2]
[352028349,1738887081664,-845.1,0.00018082,2]
[352028350,1738887081674,-1427.31,0.00018082,2]
[352028351,1738887081683,-794.65,0.00018082,2]
[352028352,1738887081693,-1046.11,0.00018082,2]
[352028353,1738887081701,-2730.71,0.00018082,2]
[352028354,1738887081710,-806.13,0.00018082,2]
[352028355,1738887081720,-1195.72,0.00018082,2]
[352028356,1738887081730,-845.52,0.00018082,2]
[352028357,1738887081739,-1708.35,0.00018082,2]
[352028358,1738887081749,-425.8212961,0.00018082,2]
[352028359,1738887081759,-1313.56,0.00018082,2]
[352028360,1738887081768,-1698.53,0.00018082,2]
[352028361,1738887081780,-905.6,0.00018082,2]
[352028362,1738887081800,-760.42,0.00018082,2]
[352028363,1738887081810,-1365.46,0.00018082,2]
[352028364,1738887081819,-1047.01,0.00018082,2]
[352028365,1738887081828,-745.99,0.00018082,2]
[352028366,1738887081838,-1348.29,0.00018082,2]
[352028367,1738887081847,-500.0,0.00018082,2]
[352028368,1738887081856,-500.0,0.00018082,2]
[352028369,1738887081865,-1127.34,0.00018082,2]
[352028370,1738887081875,-1300.25,0.00018082,2]
[352028371,1738887081885,-1455.42,0.00018082,2]
[352028372,1738887081894,-814.3,0.00018082,2]
[352028373,1738887081903,-517.97,0.00018082,2]
[352028374,1738887081912,-500.0,0.00018082,2]
[352028375,1738887081923,-2883.63,0.00018082,2]
[352028376,1738887081932,-500.0,0.00018082,2]
[352028377,1738887081942,-500.0,0.00018082,2]
[352028378,1738887081952,-647.54,0.00018082,2]
[352028379,1738887081961,-1252.07,0.00018082,2]
[352028380,1738887081970,-1086.03,0.00018082,2]
[352028381,1738887081979,-1143.54,0.00018082,2]
[352028382,1738887081989,-1045.05,0.00018082,2]
[352028383,1738887081997,-1780.26,0.00018082,2]
[352028384,1738887082006,-1089.69,0.00018082,2]
[352028385,1738887082015,-500.0,0.00018082,2]
[352028386,1738887082025,-1130.82,0.00018082,2]
[352028387,1738887082034,-867.97,0.00018082,2]
[352028388,1738887082045,-1278.31,0.00018082,2]
[352028389,1738887082057,-801.06,0.00018082,2]
[352028390,1738887082066,-652.88,0.00018082,2]
[352028391,1738887082073,-1021.32,0.00018082,2]
[352028392,1738887082079,-721.13,0.00018082,2]
[352028393,1738887082086,-558.13,0.00018082,2]
[352028394,1738887082093,-500.0,0.00018082,2]
[352028395,1738887082099,-500.0,0.00018082,2]
[352028396,1738887082106,-2386.13,0.00018082,2]
[352028397,1738887082113,-634.77,0.00018082,2]
[352028398,1738887082121,-781.32,0.00018082,2]
[352028399,1738887082128,-500.0,0.00018082,2]
[352028400,1738887082136,-643.51,0.00018082,2]
[352028401,1738887082145,-500.0,0.00018082,2]
[352028402,1738887082153,-803.41,0.00018082,2]
[352028403,1738887082162,-896.94,0.00018082,2]
[352028404,1738887082170,-1571.73,0.00018082,2]
[352028405,1738887082179,-500.0,0.00018082,2]
[352028406,1738887082190,-832.99,0.00018082,2]
[352028407,1738887082201,-262.34926299,0.00018082,5]
[352028408,1738887082211,-200.0,0.00018082,2]
[352028409,1738887082220,-2000.0,0.00018082,2]
[352028410,1738887082229,-1700.34198836,0.000181,2]
[352028411,1738887082239,-401720.58584009,0.000181,2]
[352028412,1738887082247,-150.0,0.00018105,2]
[352028413,1738887082257,-438.62,0.00018105,2]
[352028414,1738887082266,-300.0,0.00018105,2]
[352028415,1738887082275,-150.0,0.00018105,2]
[352028416,1738887082285,-150.0,0.00018105,2]
[352028417,1738887082294,-725.98059717,0.00018109,2]
[352028418,1738887082306,-16799.58119345,0.00018119,2]
[352028419,1738887082315,-1500.0,0.00018122,2]
[352028420,1738887082325,-553.59723357,0.00018122,2]
[352028421,1738887082334,-595.44540917,0.00018122,2]
[352028422,1738887082344,-157.4095578,0.00018137,5]
[352028423,1738887082353,-500.0,0.00018152,2]
[352028424,1738887082363,-1700.0,0.00018152,2]
[352028425,1738887082372,-500.0,0.00018154,2]
[352028426,1738887082382,-679.68663879,0.00018171,2]
[352028427,1738887082392,-200.0,0.0001818,2]
[352028428,1738887082401,-200.0,0.0001818,2]
[352028429,1738887082411,-262.34926299,0.00018192,5]
[352028430,1738887082421,-150.0,0.00018196,2]
[352028431,1738887082430,-205.0,0.000182,2]
[352028432,1738887082440,-909.03201692,0.00018211,2]
[352028433,1738887082450,-204.92780732,0.00018211,2]
[352028434,1738887082460,-10676.6972667,0.00018211,2]
[352028435,1738887082469,-803.37,0.00018217,2]
[352028436,1738887082479,-150.0,0.00018218,2]
[352028437,1738887082490,-553.75,0.00018219,2]
[352028438,1738887082499,-500.0,0.00018219,2]
[352028439,1738887082509,-500.0,0.00018219,2]
[352028440,1738887082519,-188.553296,0.00018219,2]
[352028441,1738887082528,-500.0,0.00018219,2]
[352028442,1738887082538,-500.0,0.00018219,2]
[352028443,1738887082547,-500.0,0.00018219,2]
[352028444,1738887082558,-500.0,0.00018219,2]
[352028445,1738887082567,-500.0,0.00018219,2]
[352028446,1738887082577,-500.0,0.00018219,2]
[352028447,1738887082586,-500.0,0.00018219,2]
[352028448,1738887082596,-500.0,0.00018219,2]
[352028449,1738887082605,-500.0,0.00018219,2]
[352028450,1738887082615,-500.0,0.00018219,2]
[352028451,1738887082625,-500.0,0.00018219,2]
[352028452,1738887082635,-500.0,0.00018219,2]
[352028453,1738887082644,-500.0,0.00018219,2]
[352028454,1738887082653,-500.0,0.00018219,2]
[352028455,1738887082663,-500.0,0.00018219,2]
[352028456,1738887082672,-500.0,0.00018219,2]
[352028457,1738887082682,-500.0,0.00018219,2]
[352028458,1738887082691,-500.0,0.00018219,2]
[352028459,1738887082701,-500.0,0.00018219,2]
[352028460,1738887082710,-500.0,0.00018219,2]
[352028461,1738887082719,-500.0,0.00018219,2]
[352028462,1738887082729,-500.0,0.00018219,2]
[352028463,1738887082738,-500.0,0.00018219,2]
[352028464,1738887082747,-500.0,0.00018219,2]
[352028465,1738887082757,-500.0,0.00018219,2]
[352028466,1738887082766,-500.0,0.00018219,2]
[352028467,1738887082775,-500.0,0.00018219,2]
[352028468,1738887082784,-500.0,0.00018219,2]
[352028469,1738887082793,-500.0,0.00018219,2]
[352028470,1738887082803,-500.0,0.00018219,2]
[352028471,1738887082811,-500.0,0.00018219,2]
[352028472,1738887082820,-500.0,0.00018219,2]
[352028473,1738887082829,-500.0,0.00018219,2]
[352028474,1738887082837,-500.0,0.00018219,2]
[352028475,1738887082972,-500.0,0.00018219,2]
[352028476,1738887082981,-500.0,0.00018219,2]
[352028477,1738887082994,-500.0,0.00018219,2]
[352028478,1738887083003,-500.0,0.00018219,2]
[352028479,1738887083012,-500.0,0.00018219,2]
[352028480,1738887083021,-500.0,0.00018219,2]
[352028481,1738887083033,-500.0,0.00018219,2]
[352028482,1738887083043,-500.0,0.00018219,2]
[352028483,1738887083054,-500.0,0.00018219,2]
[352028484,1738887083065,-500.0,0.00018219,2]
[352028485,1738887083074,-500.0,0.00018219,2]
[352028486,1738887083084,-500.0,0.00018219,2]
[352028487,1738887083094,-500.0,0.00018219,2]
[352028488,1738887083103,-500.0,0.00018219,2]
[352028489,1738887083113,-500.0,0.00018219,2]
[352028490,1738887083123,-500.0,0.00018219,2]
[352028491,1738887083133,-500.0,0.00018219,2]
[352028492,1738887083143,-500.0,0.00018219,2]
[352028493,1738887083153,-500.0,0.00018219,2]
[352028494,1738887083163,-500.0,0.00018219,2]
[352028495,1738887083173,-500.0,0.00018219,2]
[352028496,1738887083183,-500.0,0.00018219,2]
[352028497,1738887083192,-500.0,0.00018219,2]
[352028498,1738887083202,-500.0,0.00018219,2]
[352028499,1738887083211,-500.0,0.00018219,2]
[352028500,1738887083221,-500.0,0.00018219,2]
[352028501,1738887083239,-500.0,0.00018219,2]
[352028502,1738887083249,-500.0,0.00018219,2]
[352028503,1738887083258,-500.0,0.00018219,2]
[352028504,1738887083268,-500.0,0.00018219,2]
[352028505,1738887083278,-500.0,0.00018219,2]
[352028506,1738887083287,-500.0,0.00018219,2]
[352028507,1738887083297,-500.0,0.00018219,2]
[352028508,1738887083308,-500.0,0.00018219,2]
[352028509,1738887083317,-500.0,0.00018219,2]
[352028510,1738887083327,-500.0,0.00018219,2]
[352028511,1738887083337,-500.0,0.00018219,2]
[352028512,1738887083347,-500.0,0.00018219,2]
[352028513,1738887083356,-500.0,0.00018219,2]
[352028514,1738887083366,-500.0,0.00018219,2]
[352028515,1738887083376,-500.0,0.00018219,2]
[352028516,1738887083386,-500.0,0.00018219,2]
[352028517,1738887083396,-500.0,0.00018219,2]
[352028518,1738887083406,-500.0,0.00018219,2]
[352028519,1738887083415,-500.0,0.00018219,2]
[352028520,1738887083426,-500.0,0.00018219,2]
[352028521,1738887083436,-500.0,0.00018219,2]
[352028522,1738887083446,-500.0,0.00018219,2]
[352028523,1738887083455,-500.0,0.00018219,2]
[352028524,1738887083465,-500.0,0.00018219,2]
[352028525,1738887083475,-500.0,0.00018219,2]
[352028526,1738887083484,-500.0,0.00018219,2]
[352028527,1738887083494,-500.0,0.00018219,2]
[352028528,1738887083504,-500.0,0.00018219,2]
[352028529,1738887083514,-500.0,0.00018219,2]
[352028530,1738887083523,-500.0,0.00018219,2]
[352028531,1738887083533,-239.36832,0.00018219,2]
[352028532,1738887083543,-500.0,0.00018219,2]
[352028533,1738887083553,-500.0,0.00018219,2]
[352028534,1738887083563,-500.0,0.00018219,2]
[352028535,1738887083573,-500.0,0.00018219,2]
[352028536,1738887083583,-500.0,0.00018219,2]
[352028537,1738887083593,-500.0,0.00018219,2]
[352028538,1738887083602,-500.0,0.00018219,2]
[352028539,1738887083611,-510.0,0.00018219,2]
[352028540,1738887083620,-500.0,0.00018219,2]
[352028541,1738887083629,-500.0,0.00018219,2]
[352028542,1738887083639,-500.0,0.00018219,2]
[352028543,1738887083647,-551.14,0.00018219,2]
[352028544,1738887083657,-500.0,0.00018219,2]
[352028545,1738887083666,-500.0,0.00018219,2]
[352028546,1738887083674,-500.0,0.00018219,2]
[352028547,1738887083683,-403.77,0.00018219,2]
[352028548,1738887083692,-483.24263473,0.00018219,2]
[352028549,1738887083702,-500.0,0.00018219,2]
[352028550,1738887083711,-319.84157483,0.00018219,2]
[352028551,1738887083721,-500.0,0.00018219,2]
[352028552,1738887083730,-500.0,0.00018219,2]
[352028553,1738887083739,-500.0,0.00018219,2]
[352028554,1738887083749,-500.0,0.00018219,2]
[352028555,1738887083759,-599.22,0.00018219,2]
[352028556,1738887083768,-547.32,0.00018219,2]
[352028557,1738887083778,-704.99,0.00018219,2]
[352028558,1738887083787,-500.0,0.00018219,2]
[352028559,1738887083797,-500.0,0.00018219,2]
[352028560,1738887083810,-538.11,0.00018219,2]
[352028561,1738887083820,-749.24,0.00018219,2]
[352028562,1738887083830,-500.0,0.00018219,2]
[352028563,1738887083839,-500.0,0.00018219,2]
[352028564,1738887083849,-568.75,0.00018219,2]
[352028565,1738887083859,-500.0,0.00018219,2]
[352028566,1738887083868,-846.43,0.00018219,2]
[352028567,1738887083879,-500.0,0.00018219,2]
[352028568,1738887083888,-500.0,0.00018219,2]
[352028569,1738887083898,-875.88,0.00018219,2]
[352028570,1738887083907,-554.71,0.00018219,2]
[352028571,1738887083915,-2472.36,0.00018219,2]
[352028572,1738887083923,-740.46,0.00018219,2]
[352028573,1738887083934,-699.17,0.00018219,2]
[352028574,1738887083953,-673.75,0.00018219,2]
[352028575,1738887083966,-500.23,0.00018219,2]
[352028576,1738887083983,-572.48,0.00018219,2]
[352028577,1738887084005,-680.74,0.00018219,2]
[352028578,1738887084018,-854.5,0.00018219,2]
[352028579,1738887084029,-500.0,0.00018219,2]
[352028580,1738887084038,-659.8,0.00018219,2]
[352028581,1738887084049,-1266.77,0.00018219,2]
[352028582,1738887084059,-888.98,0.00018219,2]
[352028583,1738887084069,-628.17,0.00018219,2]
[352028584,1738887084079,-2607.66,0.00018219,2]
[352028585,1738887084089,-563.12,0.00018219,2]
[352028586,1738887084099,-774.98,0.00018219,2]
[352028587,1738887084110,-500.0,0.00018219,2]
[352028588,1738887084119,-500.0,0.00018219,2]
[352028589,1738887084130,-500.0,0.00018219,2]
[352028590,1738887084139,-854.75,0.00018219,2]
[352028591,1738887084148,-572.06,0.00018219,2]
[352028592,1738887084157,-500.0,0.00018219,2]
[352028593,1738887084167,-500.0,0.00018219,2]
[352028594,1738887084176,-761.68,0.00018219,2]
[352028595,1738887084187,-1006.06,0.00018219,2]
[352028596,1738887084196,-500.0,0.00018219,2]
[352028597,1738887084206,-767.84,0.00018219,2]
[352028598,1738887084216,-1113.92,0.00018219,2]
[352028599,1738887084226,-859.98,0.00018219,2]
[352028600,1738887084235,-648.05,0.00018219,2]
[352028601,1738887084245,-790.48,0.00018219,2]
[352028602,1738887084254,-500.0,0.00018219,2]
[352028603,1738887084263,-1534.72,0.00018219,2]
[352028604,1738887084273,-1014.32,0.00018219,2]
[352028605,1738887084283,-954.05,0.00018219,2]
[352028606,1738887084294,-831.75,0.00018219,2]
[352028607,1738887084306,-500.0,0.00018219,2]
[352028608,1738887084317,-721.07,0.00018219,2]
[352028609,1738887084327,-932.77,0.00018219,2]
[352028610,1738887084338,-1177.66,0.00018219,2]
[352028611,1738887084348,-206.11,0.00018219,2]
[352028612,1738887084358,-809.96,0.00018219,2]
[352028613,1738887084368,-937.04,0.00018219,2]
[352028614,1738887084379,-819.27,0.00018219,2]
[352028615,1738887084388,-500.0,0.00018219,2]
[352028616,1738887084398,-1021.65,0.00018219,2]
[352028617,1738887084408,-921.55,0.00018219,2]
[352028618,1738887084418,-533.9,0.00018219,2]
[352028619,1738887084429,-1572.61,0.00018219,2]
[352028620,1738887084438,-757.66,0.00018219,2]
[352028621,1738887084448,-508.02,0.00018219,2]
[352028622,1738887084458,-845.1,0.00018219,2]
[352028623,1738887084468,-1427.31,0.00018219,2]
[352028624,1738887084478,-794.65,0.00018219,2]
[352028625,1738887084488,-1046.11,0.00018219,2]
[352028626,1738887084499,-2730.71,0.00018219,2]
[352028627,1738887084510,-500.0,0.00018219,2]
[352028628,1738887084520,-500.0,0.00018219,2]
[352028629,1738887084529,-500.0,0.00018219,2]
[352028630,1738887084539,-500.0,0.00018219,2]
[352028631,1738887084549,-500.0,0.00018219,2]
[352028632,1738887084562,-500.0,0.00018219,2]
[352028633,1738887084571,-806.13,0.00018219,2]
[352028634,1738887084580,-500.0,0.00018219,2]
[352028635,1738887084590,-500.0,0.00018219,2]
[352028636,1738887084600,-500.0,0.00018219,2]
[352028637,1738887084611,-500.0,0.00018219,2]
[352028638,1738887084620,-500.0,0.00018219,2]
[352028639,1738887084630,-500.0,0.00018219,2]
[352028640,1738887084639,-500.0,0.00018219,2]
[352028641,1738887084649,-500.0,0.00018219,2]
[352028642,1738887084658,-500.0,0.00018219,2]
[352028643,1738887084667,-500.0,0.00018219,2]
[352028644,1738887084677,-500.0,0.00018219,2]
[352028645,1738887084687,-1195.72,0.00018219,2]
[352028646,1738887084697,-500.0,0.00018219,2]
[352028647,1738887084708,-500.0,0.00018219,2]
[352028648,1738887084718,-500.0,0.00018219,2]
[352028649,1738887084727,-500.0,0.00018219,2]
[352028650,1738887084736,-500.0,0.00018219,2]
[352028651,1738887084746,-845.52,0.00018219,2]
[352028652,1738887084756,-500.0,0.00018219,2]
[352028653,1738887084766,-1708.35,0.00018219,2]
[352028654,1738887084776,-500.0,0.00018219,2]
[352028655,1738887084786,-500.0,0.00018219,2]
[352028656,1738887084796,-500.0,0.00018219,2]
[352028657,1738887084806,-500.0,0.00018219,2]
[352028658,1738887084815,-500.0,0.00018219,2]
[352028659,1738887084824,-500.0,0.00018219,2]
[352028660,1738887084833,-500.0,0.00018219,2]
[352028661,1738887084843,-500.0,0.00018219,2]
[352028662,1738887084853,-500.0,0.00018219,2]
[352028663,1738887084864,-1313.56,0.00018219,2]
[352028664,1738887084874,-1698.53,0.00018219,2]
[352028665,1738887084884,-500.0,0.00018219,2]
[352028666,1738887084894,-500.0,0.00018219,2]
[352028667,1738887084904,-500.0,0.00018219,2]
[352028668,1738887085027,-500.0,0.00018219,2]
[352028669,1738887085039,-905.6,0.00018219,2]
[352028670,1738887085052,-500.0,0.00018219,2]
[352028671,1738887085064,-500.0,0.00018219,2]